[Event "*** Titled Tuesday Blitz"]
[Site "Chess.com"]
[Date "2021.02.16"]
[Round "5"]
[White "Chopper1905"]
[Black "Fandorine"]
[Result "1/2-1/2"]
[WhiteElo "2942"]
[BlackElo "2854"]
[TimeControl "180+1"]
[EndTime "11:00:03 PST"]
[Termination "Game drawn by repetition"]

1. d4 {[%clk 0:03:00.9]} 1... Nf6 {[%clk 0:03:00]} 2. c4 {[%clk 0:03:00.9]} 2...
g6 {[%clk 0:03:00.4]} 3. Nc3 {[%clk 0:03:01.1]} 3... Bg7 {[%clk 0:03:00.8]} 4.
e4 {[%clk 0:03:01.5]} 4... d6 {[%clk 0:03:01.3]} 5. Nf3 {[%clk 0:03:01.5]} 5...
O-O {[%clk 0:03:01.7]} 6. Be2 {[%clk 0:03:01.1]} 6... e5 {[%clk 0:03:01.6]} 7.
d5 {[%clk 0:03:01.7]} 7... Na6 {[%clk 0:03:00.2]} 8. Nd2 {[%clk 0:03:00.4]} 8...
Bh6 {[%clk 0:02:59.1]} 9. Nb3 {[%clk 0:02:29.5]} 9... Bxc1 {[%clk 0:02:56.7]}
10. Qxc1 {[%clk 0:02:30.4]} 10... Kg7 {[%clk 0:02:51.2]} 11. h4 {[%clk
0:02:29.4]} 11... h5 {[%clk 0:02:50.9]} 12. Qe3 {[%clk 0:02:25]} 12... Bd7
{[%clk 0:02:47.2]} 13. O-O-O {[%clk 0:02:21.9]} 13... b6 {[%clk 0:02:42.4]} 14.
g3 {[%clk 0:02:09.7]} 14... Nc5 {[%clk 0:02:41.3]} 15. Nxc5 {[%clk 0:01:56.5]}
15... bxc5 {[%clk 0:02:39.9]} 16. f4 {[%clk 0:01:55.2]} 16... Ng4 {[%clk
0:02:10]} 17. Bxg4 {[%clk 0:01:49.8]} 17... Bxg4 {[%clk 0:02:10.3]} 18. Rdf1
{[%clk 0:01:50.4]} 18... f6 {[%clk 0:02:07.6]} 19. Nd1 {[%clk 0:01:42.9]} 19...
Qe7 {[%clk 0:01:57.7]} 20. Nf2 {[%clk 0:01:40.5]} 20... exf4 {[%clk 0:01:53.4]}
21. gxf4 {[%clk 0:01:38.4]} 21... Rae8 {[%clk 0:01:52.1]} 22. Re1 {[%clk
0:01:36]} 22... f5 {[%clk 0:01:41.7]} 23. Qc3+ {[%clk 0:01:30.7]} 23... Kh7
{[%clk 0:01:39.7]} 24. e5 {[%clk 0:01:31.6]} 24... Qg7 {[%clk 0:01:36.4]} 25.
Rhg1 {[%clk 0:01:20]} 25... Qh6 {[%clk 0:01:14.5]} 26. Qd2 {[%clk 0:01:16]}
26... a5 {[%clk 0:01:06.1]} 27. e6 {[%clk 0:01:10.9]} 27... a4 {[%clk
0:00:59.4]} 28. Rg3 {[%clk 0:01:10.8]} 28... Qg7 {[%clk 0:00:48.3]} 29. Qc3
{[%clk 0:01:09.7]} 29... Qe7 {[%clk 0:00:45]} 30. Rh1 {[%clk 0:01:07.8]} 30...
Rb8 {[%clk 0:00:44.8]} 31. Nh3 {[%clk 0:01:04.4]} 31... Bxh3 {[%clk 0:00:29.6]}
32. Rgxh3 {[%clk 0:01:05.3]} 32... c6 {[%clk 0:00:29.3]} 33. Qd2 {[%clk
0:00:30.3]} 33... Rb4 {[%clk 0:00:26.3]} 34. Rc3 {[%clk 0:00:29.3]} 34... Rfb8
{[%clk 0:00:24.5]} 35. Rc2 {[%clk 0:00:26.4]} 35... cxd5 {[%clk 0:00:16.4]} 36.
Qxd5 {[%clk 0:00:24.9]} 36... a3 {[%clk 0:00:16.9]} 37. b3 {[%clk 0:00:23]}
37... Qf6 {[%clk 0:00:17.3]} 38. Kd2 {[%clk 0:00:19.1]} 38... Re8 {[%clk
0:00:16.2]} 39. Re1 {[%clk 0:00:17.7]} 39... Qxh4 {[%clk 0:00:16.5]} 40. Rc3
{[%clk 0:00:08.5]} 40... Qxf4+ {[%clk 0:00:15.2]} 41. Rce3 {[%clk 0:00:08.9]}
41... Re7 {[%clk 0:00:13.6]} 42. Kc2 {[%clk 0:00:08]} 42... Rb8 {[%clk
0:00:13.2]} 43. Rd3 {[%clk 0:00:07.3]} 43... Rbe8 {[%clk 0:00:09.6]} 44. Rd2
{[%clk 0:00:07.3]} 44... Kg7 {[%clk 0:00:05.8]} 45. Qc6 {[%clk 0:00:06.5]} 45...
Kf6 {[%clk 0:00:05.5]} 46. Rxd6 {[%clk 0:00:05]} 46... Qf2+ {[%clk 0:00:05.1]}
47. Kd1 {[%clk 0:00:05.3]} 47... Qb2 {[%clk 0:00:04.4]} 48. Qxc5 {[%clk
0:00:05.2]} 48... Rxe6 {[%clk 0:00:04.2]} 49. Rdxe6+ {[%clk 0:00:03.5]} 49...
Rxe6 {[%clk 0:00:05.1]} 50. Qf8+ {[%clk 0:00:04]} 50... Kg5 {[%clk 0:00:05.2]}
51. Rxe6 {[%clk 0:00:03.6]} 51... Qb1+ {[%clk 0:00:05.5]} 52. Kd2 {[%clk
0:00:04]} 52... Qxa2+ {[%clk 0:00:06]} 53. Kc3 {[%clk 0:00:03.9]} 53... Qb2+
{[%clk 0:00:06.5]} 54. Kb4 {[%clk 0:00:04.5]} 54... Qd2+ {[%clk 0:00:07]} 55.
Kb5 {[%clk 0:00:03.8]} 55... a2 {[%clk 0:00:06.9]} 56. Qf6+ {[%clk 0:00:04.1]}
56... Kg4 {[%clk 0:00:06.1]} 57. Qxg6+ {[%clk 0:00:04.5]} 57... Kh4 {[%clk
0:00:06.5]} 58. Qf6+ {[%clk 0:00:04.7]} 58... Kg4 {[%clk 0:00:07.1]} 59. Qa1
{[%clk 0:00:04.8]} 59... Qd7+ {[%clk 0:00:04.9]} 60. Rc6 {[%clk 0:00:05.2]}
60... Qb7+ {[%clk 0:00:05.5]} 61. Rb6 {[%clk 0:00:05.5]} 61... Qd7+ {[%clk
0:00:06]} 62. Kb4 {[%clk 0:00:05.8]} 62... Qd2+ {[%clk 0:00:05.8]} 63. Ka4
{[%clk 0:00:06.3]} 63... h4 {[%clk 0:00:03.9]} 64. Rg6+ {[%clk 0:00:05.9]} 64...
Kf4 {[%clk 0:00:03.5]} 65. Rg1 {[%clk 0:00:02.6]} 65... h3 {[%clk 0:00:03.6]}
66. Rf1+ {[%clk 0:00:03.5]} 66... Kg4 {[%clk 0:00:03.8]} 67. Rd1 {[%clk
0:00:04.4]} 67... Qf2 {[%clk 0:00:02.9]} 68. Rf1 {[%clk 0:00:04.3]} 68... Qa7+
{[%clk 0:00:02.6]} 69. Kb5 {[%clk 0:00:04.3]} 69... Qb7+ {[%clk 0:00:03]} 70.
Kc5 {[%clk 0:00:04.9]} 70... Qc7+ {[%clk 0:00:03.4]} 71. Kd4 {[%clk 0:00:05]}
71... Qd6+ {[%clk 0:00:03.9]} 72. Ke3 {[%clk 0:00:05.2]} 72... h2 {[%clk
0:00:04.4]} 73. Qd4+ {[%clk 0:00:03.9]} 73... f4+ {[%clk 0:00:03.8]} 74. Qxf4+
{[%clk 0:00:03.4]} 74... Qxf4+ {[%clk 0:00:03.7]} 75. Rxf4+ {[%clk 0:00:04.3]}
75... Kg3 {[%clk 0:00:04.3]} 76. Rf1 {[%clk 0:00:04.7]} 76... Kg2 {[%clk
0:00:04.8]} 77. Rf2+ {[%clk 0:00:05.2]} 77... Kg3 {[%clk 0:00:05]} 78. Rf1
{[%clk 0:00:05.1]} 78... Kg2 {[%clk 0:00:05.3]} 79. Rf2+ {[%clk 0:00:04.3]}
79... Kg3 {[%clk 0:00:05.8]} 80. Rf3+ {[%clk 0:00:02.9]} 80... Kg2 {[%clk
0:00:05.7]} 81. Rf2+ {[%clk 0:00:03.5]} 1/2-1/2

[Event "*** Titled Tuesday Blitz"]
[Site "Chess.com"]
[Date "2021.02.16"]
[Round "5"]
[White "EdmundPlayer"]
[Black "MergenKakabaev"]
[Result "0-1"]
[WhiteElo "2178"]
[BlackElo "2370"]
[TimeControl "180+1"]
[EndTime "11:00:04 PST"]
[Termination "MergenKakabaev won on time"]

1. e4 {[%clk 0:03:00.9]} 1... e5 {[%clk 0:02:59.5]} 2. Nf3 {[%clk 0:02:59.8]}
2... Nc6 {[%clk 0:02:59.5]} 3. Bc4 {[%clk 0:02:56.8]} 3... Nf6 {[%clk
0:02:58.8]} 4. d3 {[%clk 0:02:56.3]} 4... Bc5 {[%clk 0:02:57.7]} 5. c3 {[%clk
0:02:54.8]} 5... d6 {[%clk 0:02:57.7]} 6. Bb3 {[%clk 0:02:54.2]} 6... a6 {[%clk
0:02:57.2]} 7. O-O {[%clk 0:02:51.7]} 7... Ba7 {[%clk 0:02:56.9]} 8. Nbd2 {[%clk
0:02:50.6]} 8... O-O {[%clk 0:02:56.2]} 9. h3 {[%clk 0:02:44.7]} 9... Ne7 {[%clk
0:02:56.1]} 10. Re1 {[%clk 0:02:42]} 10... Ng6 {[%clk 0:02:56.2]} 11. Nf1 {[%clk
0:02:38.6]} 11... h6 {[%clk 0:02:56.2]} 12. Be3 {[%clk 0:02:34.2]} 12... Bxe3
{[%clk 0:02:54.9]} 13. fxe3 {[%clk 0:02:29.2]} 13... Be6 {[%clk 0:02:54.2]} 14.
Ng3 {[%clk 0:02:27.1]} 14... d5 {[%clk 0:02:50.2]} 15. exd5 {[%clk 0:02:21.6]}
15... Nxd5 {[%clk 0:02:47.6]} 16. Qe2 {[%clk 0:02:04.6]} 16... Qe7 {[%clk
0:02:33.5]} 17. Qf2 {[%clk 0:02:00.8]} 17... Rad8 {[%clk 0:02:30.6]} 18. Rad1
{[%clk 0:01:59.3]} 18... Kh7 {[%clk 0:02:25.1]} 19. d4 {[%clk 0:01:50]} 19...
exd4 {[%clk 0:01:59.6]} 20. exd4 {[%clk 0:01:43.7]} 20... Qd7 {[%clk 0:01:43.7]}
21. Bc2 {[%clk 0:01:40.1]} 21... Kg8 {[%clk 0:01:39]} 22. Ne4 {[%clk 0:01:33.6]}
22... b6 {[%clk 0:01:34.5]} 23. Ne5 {[%clk 0:01:22.7]} 23... Nxe5 {[%clk
0:01:34]} 24. dxe5 {[%clk 0:01:23.6]} 24... Qe7 {[%clk 0:01:28.4]} 25. Qg3
{[%clk 0:01:16.3]} 25... Kh8 {[%clk 0:01:27.4]} 26. Qd3 {[%clk 0:00:42]} 26...
Nf4 {[%clk 0:00:53.2]} 27. Qxa6 {[%clk 0:00:37.9]} 27... Ng6 {[%clk 0:00:50.9]}
28. Qe2 {[%clk 0:00:33.3]} 28... Nxe5 {[%clk 0:00:47.4]} 29. Kh2 {[%clk
0:00:29.3]} 29... Ng6 {[%clk 0:00:43.4]} 30. Rxd8 {[%clk 0:00:23.5]} 30... Rxd8
{[%clk 0:00:42.8]} 31. Ng3 {[%clk 0:00:20.6]} 31... Qg5 {[%clk 0:00:16.9]} 32.
Bxg6 {[%clk 0:00:11.9]} 32... Qxg6 {[%clk 0:00:16.1]} 33. Qe3 {[%clk 0:00:10.5]}
33... Qf6 {[%clk 0:00:15.2]} 34. a3 {[%clk 0:00:09.4]} 34... Qe7 {[%clk
0:00:14.2]} 35. Ne4 {[%clk 0:00:09.1]} 35... Qd7 {[%clk 0:00:13.3]} 36. Ng3
{[%clk 0:00:08.9]} 36... Qd2 {[%clk 0:00:13]} 37. Qxd2 {[%clk 0:00:07.5]} 37...
Rxd2 {[%clk 0:00:13.9]} 38. Re2 {[%clk 0:00:07.5]} 38... Rxe2 {[%clk 0:00:14.1]}
39. Nxe2 {[%clk 0:00:08.4]} 39... Kg8 {[%clk 0:00:14.9]} 40. Nd4 {[%clk
0:00:07.4]} 40... Bd5 {[%clk 0:00:14.9]} 41. Kg3 {[%clk 0:00:07.4]} 41... Kf8
{[%clk 0:00:14.6]} 42. Kf2 {[%clk 0:00:07.1]} 42... Ke7 {[%clk 0:00:14.8]} 43.
g3 {[%clk 0:00:06.5]} 43... g6 {[%clk 0:00:14.8]} 44. Ke3 {[%clk 0:00:06.2]}
44... Kd6 {[%clk 0:00:15]} 45. Ne2 {[%clk 0:00:06]} 45... Ke5 {[%clk 0:00:14.4]}
46. Nf4 {[%clk 0:00:05.9]} 46... Be4 {[%clk 0:00:14.7]} 47. Nd3+ {[%clk
0:00:05.6]} 47... Bxd3 {[%clk 0:00:14.5]} 48. Kxd3 {[%clk 0:00:05.7]} 48... f5
{[%clk 0:00:15.2]} 49. Ke3 {[%clk 0:00:05.4]} 49... g5 {[%clk 0:00:15.2]} 50. b3
{[%clk 0:00:05.1]} 50... Kd5 {[%clk 0:00:15.3]} 51. Kf3 {[%clk 0:00:04.6]} 51...
b5 {[%clk 0:00:14.9]} 52. Ke3 {[%clk 0:00:04.6]} 52... Kc5 {[%clk 0:00:14.8]}
53. Kd3 {[%clk 0:00:04.9]} 53... Kd5 {[%clk 0:00:15.1]} 54. Ke3 {[%clk
0:00:05.5]} 54... c5 {[%clk 0:00:14.9]} 55. a4 {[%clk 0:00:05.2]} 55... bxa4
{[%clk 0:00:11]} 56. bxa4 {[%clk 0:00:06.1]} 56... Kc6 {[%clk 0:00:11.3]} 57.
Kd3 {[%clk 0:00:05.7]} 57... Kb6 {[%clk 0:00:11.4]} 58. Kc4 {[%clk 0:00:05.6]}
58... f4 {[%clk 0:00:02.8]} 59. gxf4 {[%clk 0:00:04.9]} 59... gxf4 {[%clk
0:00:03.7]} 60. Kd3 {[%clk 0:00:04]} 60... Ka5 {[%clk 0:00:04.2]} 61. Ke4 {[%clk
0:00:04.6]} 61... Kxa4 {[%clk 0:00:05.1]} 62. Kxf4 {[%clk 0:00:05.2]} 62... Kb3
{[%clk 0:00:05.7]} 63. Kf5 {[%clk 0:00:05.8]} 63... Kxc3 {[%clk 0:00:05.8]} 64.
Kg6 {[%clk 0:00:06.7]} 64... c4 {[%clk 0:00:06.7]} 65. Kxh6 {[%clk 0:00:07.6]}
65... Kd2 {[%clk 0:00:06.8]} 66. Kg6 {[%clk 0:00:08.5]} 66... c3 {[%clk
0:00:07.7]} 67. h4 {[%clk 0:00:09.4]} 67... c2 {[%clk 0:00:08.4]} 68. h5 {[%clk
0:00:10.3]} 68... c1=Q {[%clk 0:00:09.3]} 69. h6 {[%clk 0:00:11.2]} 69... Qc3
{[%clk 0:00:08.4]} 70. h7 {[%clk 0:00:12.1]} 70... Qh8 {[%clk 0:00:08.3]} 71.
Kh6 {[%clk 0:00:09.9]} 71... Ke3 {[%clk 0:00:09.2]} 72. Kg6 {[%clk 0:00:10.4]}
72... Kf4 {[%clk 0:00:09.7]} 73. Kf7 {[%clk 0:00:10.9]} 73... Kf5 {[%clk
0:00:10.1]} 74. Ke7 {[%clk 0:00:10.6]} 74... Qxh7+ {[%clk 0:00:10.5]} 75. Kd6
{[%clk 0:00:11.5]} 75... Ke4 {[%clk 0:00:10]} 0-1

[Event "*** Titled Tuesday Blitz"]
[Site "Chess.com"]
[Date "2021.02.16"]
[Round "5"]
[White "MrTattaglia"]
[Black "Zurability"]
[Result "0-1"]
[WhiteElo "2752"]
[BlackElo "2614"]
[TimeControl "180+1"]
[EndTime "11:00:11 PST"]
[Termination "Zurability won by checkmate"]

1. Nf3 {[%clk 0:03:00.1]} 1... d5 {[%clk 0:02:56.6]} 2. g3 {[%clk 0:02:59.5]}
2... Nf6 {[%clk 0:02:55.4]} 3. Bg2 {[%clk 0:02:59.9]} 3... c5 {[%clk 0:02:49.4]}
4. O-O {[%clk 0:02:55]} 4... Nc6 {[%clk 0:02:49.9]} 5. d4 {[%clk 0:02:54.3]}
5... e6 {[%clk 0:02:49.3]} 6. c4 {[%clk 0:02:53.2]} 6... Be7 {[%clk 0:02:47.9]}
7. cxd5 {[%clk 0:02:53.2]} 7... exd5 {[%clk 0:02:48.6]} 8. Nc3 {[%clk
0:02:52.6]} 8... O-O {[%clk 0:02:45.1]} 9. dxc5 {[%clk 0:02:51.9]} 9... Bxc5
{[%clk 0:02:45.1]} 10. Bg5 {[%clk 0:02:52.2]} 10... d4 {[%clk 0:02:44.1]} 11.
Bxf6 {[%clk 0:02:49]} 11... Qxf6 {[%clk 0:02:43.9]} 12. Ne4 {[%clk 0:02:48]}
12... Qe7 {[%clk 0:02:44.1]} 13. Nxc5 {[%clk 0:02:47.3]} 13... Qxc5 {[%clk
0:02:45]} 14. Rc1 {[%clk 0:02:46.5]} 14... Qb6 {[%clk 0:02:41]} 15. Qd2 {[%clk
0:02:44.6]} 15... Rd8 {[%clk 0:02:39.3]} 16. Ne1 {[%clk 0:02:41.5]} 16... Be6
{[%clk 0:02:38.2]} 17. b3 {[%clk 0:02:39.1]} 17... Qb4 {[%clk 0:02:11.3]} 18.
Rc2 {[%clk 0:02:32.2]} 18... Bf5 {[%clk 0:02:08.7]} 19. Bxc6 {[%clk 0:02:27]}
19... Qxd2 {[%clk 0:02:06.7]} 20. Rxd2 {[%clk 0:02:27.9]} 20... bxc6 {[%clk
0:02:06.8]} 21. Nd3 {[%clk 0:02:27.7]} 21... a5 {[%clk 0:01:59.9]} 22. Rc1
{[%clk 0:02:25.1]} 22... Rd6 {[%clk 0:01:50.6]} 23. Nc5 {[%clk 0:02:21.4]} 23...
h5 {[%clk 0:01:36.3]} 24. f3 {[%clk 0:02:20.7]} 24... Rd5 {[%clk 0:01:29.4]} 25.
Kf2 {[%clk 0:02:17.9]} 25... Re8 {[%clk 0:01:26.2]} 26. Rc4 {[%clk 0:02:11.9]}
26... Red8 {[%clk 0:01:19.5]} 27. Na4 {[%clk 0:02:11.5]} 27... R8d6 {[%clk
0:01:03.8]} 28. h4 {[%clk 0:01:46.8]} 28... Kf8 {[%clk 0:01:03.7]} 29. Nc5
{[%clk 0:01:43.9]} 29... Ke7 {[%clk 0:01:02]} 30. Rd1 {[%clk 0:01:34.8]} 30...
Rd8 {[%clk 0:00:50.3]} 31. Rdc1 {[%clk 0:01:31.5]} 31... Bc8 {[%clk 0:00:46.2]}
32. Na4 {[%clk 0:01:29.7]} 32... Bb7 {[%clk 0:00:39.5]} 33. Nc5 {[%clk
0:01:28.1]} 33... Bc8 {[%clk 0:00:39.3]} 34. Nd3 {[%clk 0:01:28.6]} 34... Bb7
{[%clk 0:00:37]} 35. Nf4 {[%clk 0:01:29.1]} 35... Rb5 {[%clk 0:00:32.7]} 36. Rc5
{[%clk 0:01:29.2]} 36... g6 {[%clk 0:00:26.9]} 37. Ke1 {[%clk 0:01:20.3]} 37...
Kd6 {[%clk 0:00:24.4]} 38. Nd3 {[%clk 0:01:20.2]} 38... Re8 {[%clk 0:00:20.6]}
39. Kd2 {[%clk 0:01:19.6]} 39... Rxc5 {[%clk 0:00:20.6]} 40. Nxc5 {[%clk
0:01:18.7]} 40... Bc8 {[%clk 0:00:20.6]} 41. Ne4+ {[%clk 0:01:18.2]} 41... Kc7
{[%clk 0:00:19.4]} 42. Ng5 {[%clk 0:01:07.9]} 42... f6 {[%clk 0:00:17.2]} 43.
Ne4 {[%clk 0:01:06.2]} 43... f5 {[%clk 0:00:17.6]} 44. Nc5 {[%clk 0:01:03.8]}
44... Kb6 {[%clk 0:00:16.5]} 45. Nd3 {[%clk 0:01:03.4]} 45... Ba6 {[%clk
0:00:16.1]} 46. Nf4 {[%clk 0:01:03.9]} 46... c5 {[%clk 0:00:13.5]} 47. Re1
{[%clk 0:00:59.1]} 47... c4 {[%clk 0:00:13.8]} 48. bxc4 {[%clk 0:00:56.7]} 48...
Bxc4 {[%clk 0:00:13]} 49. a3 {[%clk 0:00:55.1]} 49... Re3 {[%clk 0:00:11.3]} 50.
Rc1 {[%clk 0:00:39.9]} 50... Kb5 {[%clk 0:00:09.4]} 51. Rb1+ {[%clk 0:00:19.2]}
51... Kc5 {[%clk 0:00:09]} 52. Ra1 {[%clk 0:00:19.7]} 52... Rb3 {[%clk
0:00:08.5]} 53. Ke1 {[%clk 0:00:13.1]} 53... Rb2 {[%clk 0:00:07]} 54. Rc1 {[%clk
0:00:12.2]} 54... Kb5 {[%clk 0:00:06.5]} 55. Rd1 {[%clk 0:00:12.2]} 55... Kc5
{[%clk 0:00:05.6]} 56. Rd2 {[%clk 0:00:12.1]} 56... Rb3 {[%clk 0:00:04.6]} 57.
Nxg6 {[%clk 0:00:12]} 57... Rxa3 {[%clk 0:00:04.7]} 58. Nf4 {[%clk 0:00:11.5]}
58... Ra1+ {[%clk 0:00:04.4]} 59. Kf2 {[%clk 0:00:11.3]} 59... a4 {[%clk
0:00:03.2]} 60. Rc2 {[%clk 0:00:07.1]} 60... a3 {[%clk 0:00:03]} 61. Ne6+ {[%clk
0:00:07.3]} 61... Kd5 {[%clk 0:00:03.1]} 62. Nc7+ {[%clk 0:00:07.5]} 62... Kc5
{[%clk 0:00:03.7]} 63. Ne6+ {[%clk 0:00:08]} 63... Kb4 {[%clk 0:00:04.2]} 64.
Nxd4 {[%clk 0:00:08]} 64... a2 {[%clk 0:00:04.5]} 65. Ke3 {[%clk 0:00:03.2]}
65... Rg1 {[%clk 0:00:01.9]} 66. Rb2+ {[%clk 0:00:03.6]} 66... Ka3 {[%clk
0:00:01.9]} 67. Rxa2+ {[%clk 0:00:04.2]} 67... Bxa2 {[%clk 0:00:02.8]} 68. Kf4
{[%clk 0:00:03]} 68... Bb1 {[%clk 0:00:03.1]} 69. Kg5 {[%clk 0:00:01.6]} 69...
Rxg3+ {[%clk 0:00:02.6]} 70. Kxh5 {[%clk 0:00:02.3]} 70... f4 {[%clk 0:00:03.4]}
71. Ne6 {[%clk 0:00:02.3]} 71... Kb4 {[%clk 0:00:03.6]} 72. Nxf4 {[%clk
0:00:02.8]} 72... Kc5 {[%clk 0:00:03.9]} 73. e4 {[%clk 0:00:03.4]} 73... Kd6
{[%clk 0:00:04.1]} 74. Ng6 {[%clk 0:00:02]} 74... Rxf3 {[%clk 0:00:03.9]} 75.
Kg4 {[%clk 0:00:02]} 75... Rf1 {[%clk 0:00:03.9]} 76. e5+ {[%clk 0:00:01.7]}
76... Ke6 {[%clk 0:00:04]} 77. Nf4+ {[%clk 0:00:02.1]} 77... Kxe5 {[%clk
0:00:04.1]} 78. Ne2 {[%clk 0:00:02.8]} 78... Bd3 {[%clk 0:00:03.7]} 79. Nc3
{[%clk 0:00:02.5]} 79... Rg1+ {[%clk 0:00:03.9]} 80. Kf3 {[%clk 0:00:02.6]}
80... Rh1 {[%clk 0:00:03.6]} 81. Kg3 {[%clk 0:00:01.7]} 81... Bf5 {[%clk
0:00:03.4]} 82. Ne2 {[%clk 0:00:01.7]} 82... Re1 {[%clk 0:00:03.7]} 83. Nf4
{[%clk 0:00:01.7]} 83... Re3+ {[%clk 0:00:04.2]} 84. Kf2 {[%clk 0:00:01.7]}
84... Kxf4 {[%clk 0:00:04.9]} 85. h5 {[%clk 0:00:01.3]} 85... Rf3+ {[%clk
0:00:05.8]} 86. Kg2 {[%clk 0:00:01.2]} 86... Rh3 {[%clk 0:00:06.5]} 87. h6
{[%clk 0:00:01.2]} 87... Rh4 {[%clk 0:00:06.9]} 88. h7 {[%clk 0:00:02.1]} 88...
Be4+ {[%clk 0:00:07.5]} 89. Kf2 {[%clk 0:00:02.4]} 89... Rxh7 {[%clk 0:00:07.7]}
90. Kg1 {[%clk 0:00:03.3]} 90... Kf3 {[%clk 0:00:06.7]} 91. Kf1 {[%clk
0:00:04.2]} 91... Rh1# {[%clk 0:00:07.1]} 0-1

[Event "*** Titled Tuesday Blitz"]
[Site "Chess.com"]
[Date "2021.02.16"]
[Round "5"]
[White "awesomevishesh"]
[Black "Smile2005"]
[Result "1-0"]
[WhiteElo "2518"]
[BlackElo "2350"]
[TimeControl "180+1"]
[EndTime "11:00:45 PST"]
[Termination "awesomevishesh won by checkmate"]

1. d4 {[%clk 0:02:59.7]} 1... Nf6 {[%clk 0:02:54.6]} 2. c4 {[%clk 0:02:58.6]}
2... g6 {[%clk 0:02:54.7]} 3. Nc3 {[%clk 0:02:58.3]} 3... Bg7 {[%clk 0:02:55.4]}
4. e4 {[%clk 0:02:57.9]} 4... O-O {[%clk 0:02:56.3]} 5. Be2 {[%clk 0:02:57.2]}
5... d6 {[%clk 0:02:54.9]} 6. Bg5 {[%clk 0:02:56.5]} 6... h6 {[%clk 0:02:54.4]}
7. Be3 {[%clk 0:02:56]} 7... e5 {[%clk 0:02:54]} 8. Nf3 {[%clk 0:02:49.7]} 8...
exd4 {[%clk 0:02:53.7]} 9. Nxd4 {[%clk 0:02:49.2]} 9... Re8 {[%clk 0:02:54.1]}
10. f3 {[%clk 0:02:44.8]} 10... Nc6 {[%clk 0:02:53.4]} 11. O-O {[%clk
0:02:40.2]} 11... Nh5 {[%clk 0:02:50.4]} 12. f4 {[%clk 0:02:25.1]} 12... Nf6
{[%clk 0:02:46]} 13. Bf3 {[%clk 0:02:22.5]} 13... Bg4 {[%clk 0:02:34.5]} 14.
Nxc6 {[%clk 0:01:46]} 14... Bxf3 {[%clk 0:02:33.8]} 15. Qxf3 {[%clk 0:01:45.6]}
15... bxc6 {[%clk 0:02:33.2]} 16. Rad1 {[%clk 0:01:30.3]} 16... Qe7 {[%clk
0:02:32.7]} 17. e5 {[%clk 0:01:29.8]} 17... dxe5 {[%clk 0:02:31.7]} 18. fxe5
{[%clk 0:01:29.8]} 18... Qxe5 {[%clk 0:02:31.4]} 19. Bd4 {[%clk 0:01:29.9]}
19... Qf5 {[%clk 0:02:26.8]} 20. Qxf5 {[%clk 0:01:28.4]} 20... gxf5 {[%clk
0:02:27.7]} 21. Rxf5 {[%clk 0:01:27]} 21... Ne4 {[%clk 0:02:24.8]} 22. Bxg7
{[%clk 0:01:19.9]} 22... Kxg7 {[%clk 0:02:24.7]} 23. Nxe4 {[%clk 0:01:18]} 23...
Rxe4 {[%clk 0:02:24.5]} 24. Rc5 {[%clk 0:01:17.7]} 24... Re2 {[%clk 0:01:50.3]}
25. Rxc6 {[%clk 0:01:16.8]} 25... Rxb2 {[%clk 0:01:48.4]} 26. Rxc7 {[%clk
0:01:13]} 26... Re8 {[%clk 0:01:46.6]} 27. Rf1 {[%clk 0:01:07.8]} 27... Rxa2
{[%clk 0:01:25.8]} 28. Rcxf7+ {[%clk 0:01:03.5]} 28... Kg6 {[%clk 0:01:26]} 29.
R7f6+ {[%clk 0:00:39.2]} 29... Kg7 {[%clk 0:01:18.7]} 30. R6f3 {[%clk
0:00:37.3]} 30... Re7 {[%clk 0:01:06.8]} 31. Rc3 {[%clk 0:00:33.9]} 31... h5
{[%clk 0:00:56.5]} 32. c5 {[%clk 0:00:32]} 32... h4 {[%clk 0:00:56.8]} 33. Rc4
{[%clk 0:00:31.2]} 33... Kg6 {[%clk 0:00:45.2]} 34. Rxh4 {[%clk 0:00:29.2]}
34... Rc2 {[%clk 0:00:43]} 35. Rg4+ {[%clk 0:00:17.8]} 35... Kh5 {[%clk
0:00:42.3]} 36. h3 {[%clk 0:00:17.8]} 36... Rxc5 {[%clk 0:00:40]} 37. Rf8 {[%clk
0:00:17.9]} 37... Rh7 {[%clk 0:00:16.7]} 38. Ra8 {[%clk 0:00:17.1]} 38... a5
{[%clk 0:00:16.8]} 39. Ra4 {[%clk 0:00:14.5]} 39... Rc2 {[%clk 0:00:10.2]} 40.
R8xa5+ {[%clk 0:00:13.8]} 40... Kg6 {[%clk 0:00:10.5]} 41. Rg4+ {[%clk
0:00:12.6]} 41... Kf6 {[%clk 0:00:10.7]} 42. Kh2 {[%clk 0:00:11.1]} 42... Re7
{[%clk 0:00:09.9]} 43. Ra3 {[%clk 0:00:10]} 43... Ree2 {[%clk 0:00:09.6]} 44.
Rf3+ {[%clk 0:00:09.7]} 44... Ke6 {[%clk 0:00:10]} 45. h4 {[%clk 0:00:09.4]}
45... Ke5 {[%clk 0:00:07.8]} 46. h5 {[%clk 0:00:09.4]} 46... Rc6 {[%clk
0:00:07.3]} 47. Kh3 {[%clk 0:00:09.1]} 47... Re1 {[%clk 0:00:06.8]} 48. Kh4
{[%clk 0:00:07.6]} 48... Rh6 {[%clk 0:00:05.3]} 49. Kg5 {[%clk 0:00:07.2]} 49...
Rh8 {[%clk 0:00:05.5]} 50. Rf5+ {[%clk 0:00:05.9]} 50... Ke6 {[%clk 0:00:05.3]}
51. Rgf4 {[%clk 0:00:03.6]} 51... Rg1 {[%clk 0:00:02.9]} 52. g4 {[%clk 0:00:03]}
52... Rh1 {[%clk 0:00:03.1]} 53. Rf6+ {[%clk 0:00:02.9]} 53... Ke5 {[%clk
0:00:03.7]} 54. R6f5+ {[%clk 0:00:02.9]} 54... Ke6 {[%clk 0:00:04]} 55. Re4+
{[%clk 0:00:03.4]} 55... Kd6 {[%clk 0:00:02.8]} 56. Rf6+ {[%clk 0:00:03.5]}
56... Kd7 {[%clk 0:00:03.4]} 57. Rf7+ {[%clk 0:00:03.1]} 57... Kd6 {[%clk
0:00:03.5]} 58. Rf3 {[%clk 0:00:03]} 58... Kd5 {[%clk 0:00:03.6]} 59. Ref4
{[%clk 0:00:03]} 59... Ke5 {[%clk 0:00:03.9]} 60. Rf5+ {[%clk 0:00:03]} 60...
Ke6 {[%clk 0:00:04.3]} 61. Re3+ {[%clk 0:00:03]} 61... Kd6 {[%clk 0:00:04.5]}
62. Kf4 {[%clk 0:00:03.3]} 62... Rg1 {[%clk 0:00:04]} 63. Rg3 {[%clk 0:00:03.1]}
63... Rf1+ {[%clk 0:00:03.9]} 64. Rf3 {[%clk 0:00:03.5]} 64... Rg1 {[%clk
0:00:03.9]} 65. Rf6+ {[%clk 0:00:03.5]} 65... Ke7 {[%clk 0:00:03.6]} 66. Kf5
{[%clk 0:00:03.2]} 66... Rg8 {[%clk 0:00:03.6]} 67. Re3+ {[%clk 0:00:03.3]}
67... Kd7 {[%clk 0:00:04]} 68. Re4 {[%clk 0:00:03.4]} 68... Kc7 {[%clk
0:00:02.2]} 69. h6 {[%clk 0:00:03.1]} 69... Rh1 {[%clk 0:00:02.3]} 70. g5 {[%clk
0:00:03.1]} 70... Kd7 {[%clk 0:00:03.2]} 71. Rf7+ {[%clk 0:00:02.4]} 71... Kd6
{[%clk 0:00:03.1]} 72. h7 {[%clk 0:00:02.6]} 72... Rh8 {[%clk 0:00:03.6]} 73.
Kg6 {[%clk 0:00:02.4]} 73... Rh5 {[%clk 0:00:04.1]} 74. Kxh5 {[%clk 0:00:02.3]}
74... Kd5 {[%clk 0:00:04.7]} 75. Ref4 {[%clk 0:00:02.3]} 75... Ke5 {[%clk
0:00:05]} 76. g6 {[%clk 0:00:02.8]} 76... Ke6 {[%clk 0:00:05]} 77. Kh6 {[%clk
0:00:03.2]} 77... Ke5 {[%clk 0:00:05]} 78. Rf8 {[%clk 0:00:03.6]} 78... Rxh7+
{[%clk 0:00:04.9]} 79. gxh7 {[%clk 0:00:03.4]} 79... Ke6 {[%clk 0:00:05.2]} 80.
Rf1 {[%clk 0:00:03.6]} 80... Ke5 {[%clk 0:00:05.4]} 81. R8f2 {[%clk 0:00:04.3]}
81... Kd5 {[%clk 0:00:06.3]} 82. Re2 {[%clk 0:00:04]} 82... Kd4 {[%clk
0:00:06.6]} 83. Rd1+ {[%clk 0:00:04.4]} 83... Kc3 {[%clk 0:00:07.5]} 84. Rd8
{[%clk 0:00:04.7]} 84... Kc4 {[%clk 0:00:06.7]} 85. Re7 {[%clk 0:00:05.4]} 85...
Kc5 {[%clk 0:00:06.9]} 86. Rc7+ {[%clk 0:00:05.9]} 86... Kb6 {[%clk 0:00:07.6]}
87. Rc1 {[%clk 0:00:06.4]} 87... Kb5 {[%clk 0:00:07.8]} 88. Rd2 {[%clk
0:00:06.7]} 88... Ka4 {[%clk 0:00:08.7]} 89. Rb2 {[%clk 0:00:06.4]} 89... Ka3
{[%clk 0:00:09]} 90. Rb8 {[%clk 0:00:06.6]} 90... Ka2 {[%clk 0:00:09.9]} 91. Rc6
{[%clk 0:00:06.4]} 91... Ka3 {[%clk 0:00:09.2]} 92. Ra6# {[%clk 0:00:07.2]} 1-0